fUSD/lending_fUSD_20240205
["ID","MTS","AMOUNT","RATE_DAILY","PERIOD"]
[313309441,1707130240336,-549.91,0.00045201,7]
[313309442,1707130240346,-615.89,0.00045201,7]
[313309443,1707130240356,-500.0,0.00045201,7]
[313309444,1707130240365,-1490.93057414,0.00045202,4]
[313309445,1707130240375,-564.54,0.00045202,7]
[313309446,1707130240383,-377.17095555,0.00045202,7]
[313309447,1707130240393,-500.0,0.00045202,7]
[313309448,1707130240402,-472.35031546,0.00045202,7]
[313309449,1707130240411,-500.0,0.00045202,7]
[313309450,1707130240421,-500.0,0.00045202,2]
[313309451,1707130240430,-500.0,0.00045202,7]
[313309452,1707130240439,-500.0,0.00045202,7]
[313309453,1707130240448,-500.0,0.00045202,7]
[313309454,1707130240458,-500.0,0.00045202,7]
[313309455,1707130240467,-469.69223311,0.00045202,7]
[313309456,1707130240476,-500.0,0.00045202,7]
[313309457,1707130240485,-168.83287606,0.00045203,7]
[313309458,1707130240495,-500.0,0.00045203,7]
[313309459,1707130240505,-250.0,0.00045203,7]
[313309460,1707130240514,-500.0,0.00045203,7]
[313309461,1707130240523,-500.0,0.00045203,7]
[313309462,1707130240533,-500.0,0.00045203,7]
[313309463,1707130240542,-500.0,0.00045203,7]
[313309464,1707130240551,-733.02,0.00045203,7]
[313309465,1707130240560,-500.0,0.00045203,7]
[313309466,1707130240569,-931.89,0.00045203,7]
[313309467,1707130240579,-533.44,0.00045203,7]
[313309468,1707130240588,-749.6,0.00045203,7]
[313309469,1707130240598,-698.22,0.00045203,7]
[313309470,1707130240608,-500.0,0.00045203,2]
[313309471,1707130240618,-548.82166895,0.00045203,7]
[313309472,1707130240627,-500.0,0.00045203,7]
[313309473,1707130240637,-500.0,0.00045203,7]
[313309474,1707130240646,-359.94454254,0.00045203,30]
[313309475,1707130240656,-500.0,0.00045203,2]
[313309476,1707130240665,-500.0,0.00045436,2]
[313309477,1707130240675,-200.0,0.00045436,10]
[313309478,1707130240684,-480.0,0.00045503,7]
[313309479,1707130240693,-600.0,0.00045789,2]
[313309480,1707130240703,-178.88901864,0.00045884,12]
[313309481,1707130240712,-412.0,0.0004599,2]
[313309482,1707130240722,-88574.0000705,0.00046013,10]
[313309483,1707130240732,-500.0,0.00046022,7]
[313309484,1707130240743,-500.0,0.00046022,2]
[313309485,1707130240753,-500.0,0.00046022,7]
[313309486,1707130240763,-500.0,0.00046022,7]
[313309487,1707130240773,-168.81349276,0.00046022,7]
[313309488,1707130240784,-500.0,0.00046022,7]
[313309489,1707130240794,-500.0,0.00046022,7]
[313309490,1707130240804,-500.0,0.00046022,7]
[313309491,1707130240814,-500.0,0.00046022,7]
[313309492,1707130240824,-500.0,0.00046022,7]
[313309493,1707130240835,-500.0,0.00046022,7]
[313309494,1707130240844,-500.0,0.00046022,7]
[313309495,1707130240854,-500.0,0.00046022,7]
[313309496,1707130240865,-500.0,0.00046022,7]
[313309497,1707130240875,-500.0,0.00046022,2]
[313309498,1707130240887,-500.0,0.00046022,7]
[313309499,1707130240897,-500.0,0.00046022,7]
[313309500,1707130240907,-500.0,0.00046022,7]
[313309501,1707130240916,-500.0,0.00046022,7]
[313309502,1707130240926,-500.0,0.00046022,7]
[313309503,1707130240936,-500.0,0.00046022,7]
[313309504,1707130240946,-718.9,0.00046022,7]
[313309505,1707130240956,-566.12,0.00046022,7]
[313309506,1707130240966,-500.0,0.00046022,7]
[313309507,1707130240975,-500.0,0.00046022,7]
[313309508,1707130240985,-500.0,0.00046022,7]
[313309509,1707130240994,-500.0,0.00046022,7]
[313309510,1707130241004,-509.35,0.00046022,7]
[313309511,1707130241014,-500.0,0.00046022,7]
[313309512,1707130241024,-500.0,0.00046022,7]
[313309513,1707130241033,-1890.0,0.00046022,7]
[313309514,1707130241042,-1254.09,0.00046022,7]
[313309515,1707130241053,-715.3,0.00046022,7]
[313309516,1707130241062,-500.0,0.00046022,7]
[313309517,1707130241072,-500.0,0.00046022,7]
[313309518,1707130241082,-500.0,0.00046022,7]
[313309519,1707130241091,-858.48,0.00046022,7]
[313309520,1707130241100,-727.18,0.00046022,7]
[313309521,1707130241110,-500.0,0.00046022,7]
[313309522,1707130241120,-500.0,0.00046022,7]
[313309523,1707130241129,-532.73609507,0.00046022,7]
[313309524,1707130241139,-500.0,0.00046022,7]
[313309525,1707130241148,-500.0,0.00046022,7]
[313309526,1707130241157,-500.0,0.00046022,7]
[313309527,1707130241167,-500.0,0.00046022,7]
[313309528,1707130241177,-1626.67,0.00046022,7]
[313309529,1707130241186,-500.0,0.00046022,7]
[313309530,1707130241196,-500.0,0.00046022,7]
[313309531,1707130241205,-500.0,0.00046022,7]
[313309532,1707130241224,-500.0,0.00046022,7]
[313309533,1707130241236,-500.0,0.00046022,7]
[313309534,1707130241246,-500.0,0.00046022,7]
[313309535,1707130241255,-500.0,0.00046022,7]
[313309536,1707130241265,-766.7,0.00046022,7]
[313309537,1707130241274,-500.0,0.00046022,7]
[313309538,1707130241285,-500.0,0.00046022,7]
[313309539,1707130241295,-651.9,0.00046022,7]
[313309540,1707130241304,-500.0,0.00046022,7]
[313309541,1707130241314,-500.0,0.00046022,7]
[313309542,1707130241324,-500.0,0.00046022,7]
[313309543,1707130241334,-500.0,0.00046022,7]
[313309544,1707130241343,-500.0,0.00046022,7]
[313309545,1707130241353,-6587.33,0.00046022,7]
[313309546,1707130241363,-267.1297116,0.00046022,7]
[313309547,1707130241374,-1493.24,0.00046022,7]
[313309548,1707130241383,-500.0,0.00046022,7]
[313309549,1707130241393,-500.0,0.00046022,7]
[313309550,1707130241403,-500.0,0.00046022,7]
[313309551,1707130241413,-500.0,0.00046022,7]
[313309552,1707130241423,-500.0,0.00046022,7]
[313309553,1707130241433,-551.7,0.00046022,7]
[313309554,1707130241443,-500.0,0.00046022,7]
[313309555,1707130241453,-500.0,0.00046022,7]
[313309556,1707130241462,-500.0,0.00046022,7]
[313309557,1707130241472,-500.0,0.00046022,7]
[313309558,1707130241482,-555.19,0.00046022,7]
[313309559,1707130241492,-500.0,0.00046022,7]
[313309560,1707130241502,-1338.63,0.00046022,5]
[313309561,1707130241512,-500.0,0.00046022,7]
[313309562,1707130241522,-500.0,0.00046022,7]
[313309563,1707130241532,-551.62,0.00046022,7]
[313309564,1707130241541,-500.0,0.00046022,7]
[313309565,1707130241551,-1444.67,0.00046022,5]
[313309566,1707130241561,-500.0,0.00046022,7]
[313309567,1707130241571,-500.0,0.00046022,7]
[313309568,1707130241580,-500.0,0.00046022,7]
[313309569,1707130241590,-500.0,0.00046022,7]
[313309570,1707130241600,-500.0,0.00046022,7]
[313309571,1707130241609,-311.60676035,0.00046022,7]
[313309577,1707130242789,-152.17140298,0.00036905,2]
[313309578,1707130242798,-152.17140298,0.00037765,2]
[313309579,1707130242808,-154.44337882,0.00043556,30]
[313309580,1707130242818,-500.0,0.00043556,7]
[313309581,1707130242827,-150.1,0.00044378,30]
[313309582,1707130242837,-154.24984512,0.00044381,30]
[313309583,1707130242847,-207.0,0.00044987,10]
[313309584,1707130242857,-232.47451318,0.00045199,30]
[313309585,1707130242868,-692.96323965,0.00046022,7]
[313309586,1707130242879,-500.0,0.00046022,7]
[313309587,1707130242889,-1019.61,0.00046022,7]
[313309588,1707130242900,-500.0,0.00046022,7]
[313309597,1707130243104,-806.42,0.00046022,7]
[313309599,1707130243114,-500.0,0.00046022,7]
[313309601,1707130243123,-506.52,0.00046022,7]
[313309604,1707130243133,-500.0,0.00046022,7]
[313309606,1707130243142,-500.0,0.00046022,7]
[313309608,1707130243151,-292.8539968,0.00046022,7]
[313309610,1707130243161,-500.0,0.00046022,7]
[313309612,1707130243170,-714.36,0.00046022,7]
[313309613,1707130243179,-4226.01,0.00046022,7]
[313309614,1707130243188,-343.45472497,0.00046023,30]
[313309615,1707130243198,-500.0,0.00046023,7]
[313309616,1707130243207,-1264.98,0.00046023,7]
[313309617,1707130243216,-500.0,0.00046023,7]
[313309618,1707130243226,-509.02,0.00046023,7]
[313309619,1707130243235,-500.0,0.00046023,7]
[313309620,1707130243244,-903.0,0.00046023,7]
[313309621,1707130243253,-500.0,0.00046023,7]
[313309622,1707130243263,-500.0,0.00046023,7]
[313309623,1707130243272,-500.0,0.00046023,7]
[313309624,1707130243282,-500.0,0.00046023,7]
[313309625,1707130243292,-500.0,0.00046023,20]
[313309626,1707130243301,-1670.88,0.00046023,7]
[313309627,1707130243310,-203.79218907,0.00046023,7]
[313309628,1707130243319,-500.0,0.00046023,7]
[313309629,1707130243328,-500.0,0.00046023,7]
[313309630,1707130243337,-500.0,0.00046023,7]
[313309631,1707130243347,-520.4,0.00046023,7]
[313309632,1707130243356,-500.0,0.00046023,7]
[313309633,1707130243368,-500.41,0.00046023,7]
[313309634,1707130243378,-573.27,0.00046023,7]
[313309635,1707130243387,-1910.08,0.00046023,7]
[313309636,1707130243396,-808.56,0.00046023,7]
[313309637,1707130243405,-500.0,0.00046023,7]
[313309638,1707130243414,-500.0,0.00046023,7]
[313309639,1707130243423,-500.0,0.00046023,7]
[313309640,1707130243432,-500.0,0.00046023,7]
[313309641,1707130243442,-500.62,0.00046023,7]
[313309642,1707130243451,-500.0,0.00046023,7]
[313309643,1707130243461,-500.0,0.00046023,7]
[313309644,1707130243470,-500.0,0.00046023,7]
[313309645,1707130243479,-2098.27,0.00046023,7]
[313309646,1707130243488,-500.0,0.00046023,7]
[313309647,1707130243498,-500.0,0.00046023,7]
[313309648,1707130243507,-500.0,0.00046023,7]
[313309649,1707130243516,-500.0,0.00046023,7]
[313309651,1707130243526,-500.0,0.00046023,7]
[313309653,1707130243535,-500.0,0.00046023,7]
[313309654,1707130243544,-561.82,0.00046023,7]
[313309655,1707130243553,-500.0,0.00046023,7]
[313309656,1707130243562,-500.0,0.00046023,7]
[313309657,1707130243571,-1037.42,0.00046023,7]
[313309659,1707130243580,-500.0,0.00046023,7]
[313309660,1707130243589,-500.0,0.00046023,7]
[313309661,1707130243598,-500.0,0.00046023,7]
[313309662,1707130243607,-517.19,0.00046023,7]
[313309663,1707130243617,-500.0,0.00046023,7]
[313309664,1707130243626,-310.61626111,0.00046023,7]
[313309665,1707130243635,-534.19637535,0.00046023,7]
[313309666,1707130243681,-306.25362465,0.00046023,7]
[313309667,1707130243691,-500.0,0.00046023,7]
[313309668,1707130243700,-808.23,0.00046023,7]
[313309669,1707130243710,-500.0,0.00046023,7]
[313309670,1707130243719,-638.93,0.00046023,7]
[313309671,1707130243728,-500.0,0.00046023,7]
[313309672,1707130243738,-500.0,0.00046023,7]
[313309673,1707130243747,-500.0,0.00046023,7]
[313309674,1707130243757,-500.0,0.00046023,7]
[313309675,1707130243766,-500.0,0.00046023,7]
[313309676,1707130243776,-500.0,0.00046023,7]
[313309677,1707130243785,-549.91,0.00046023,7]
[313309678,1707130243795,-615.89,0.00046023,7]
[313309679,1707130243804,-500.0,0.00046023,7]
[313309680,1707130243813,-306.97180835,0.00046024,2]
[313309681,1707130243822,-564.54,0.00046024,7]
[313309682,1707130243832,-500.0,0.00046024,7]
[313309683,1707130243841,-629.12364633,0.00046024,7]
[313309684,1707130243850,-500.0,0.00046024,2]
[313309685,1707130243860,-500.0,0.00046024,7]
[313309686,1707130243869,-500.0,0.00046024,7]
[313309687,1707130243879,-500.0,0.00046024,7]
[313309688,1707130243888,-500.0,0.00046024,7]
[313309689,1707130243897,-500.0,0.00046024,7]
[313309690,1707130243905,-500.0,0.00046025,7]
[313309691,1707130243914,-250.0,0.00046025,7]
[313309692,1707130243923,-500.0,0.00046025,7]
[313309693,1707130243932,-500.0,0.00046025,7]
[313309694,1707130243941,-500.0,0.00046025,7]
[313309695,1707130243951,-733.02,0.00046025,7]
[313309696,1707130243960,-417.10421691,0.00046025,7]
[313309697,1707130243969,-931.89,0.00046025,7]
[313309698,1707130243978,-533.44,0.00046025,7]
[313309699,1707130243987,-749.6,0.00046025,7]
[313309700,1707130243996,-698.22,0.00046025,7]
[313309701,1707130244005,-500.0,0.00046025,2]
[313309702,1707130244014,-500.0,0.00046025,7]
[313309703,1707130244023,-500.0,0.00046025,7]
[313309704,1707130244033,-500.0,0.00046025,2]
[313309705,1707130244044,-429.0,0.0004606,2]
[313309706,1707130244053,-18628.0,0.00046362,30]
[313309707,1707130244062,-400.0,0.00046374,2]
[313309708,1707130244071,-500.0,0.00046426,2]
[313309709,1707130244081,-500.0,0.00046575,60]
[313309710,1707130244089,-650.0,0.00046575,120]
[313309711,1707130244098,-650.0,0.00046575,120]
[313309712,1707130244108,-650.0,0.00046575,120]
[313309713,1707130244117,-650.0,0.00046575,120]
[313309714,1707130244126,-650.0,0.00046575,120]
[313309715,1707130244135,-650.0,0.00046575,120]
[313309716,1707130244144,-1000.0,0.00046575,31]
[313309717,1707130244153,-1000.0,0.00046575,31]
[313309718,1707130244162,-1000.0,0.00046575,31]
[313309719,1707130244171,-1000.0,0.00046575,31]
[313309720,1707130244181,-1000.0,0.00046575,31]
[313309721,1707130244189,-1000.0,0.00046575,31]
[313309722,1707130244199,-1000.0,0.00046575,31]
[313309723,1707130244208,-1000.0,0.00046575,31]
[313309724,1707130244217,-1000.0,0.00046575,31]
[313309725,1707130244226,-1000.0,0.00046575,31]
[313309726,1707130244235,-1000.0,0.00046575,31]
[313309727,1707130244244,-1000.0,0.00046575,31]
[313309728,1707130244253,-178.88901864,0.00046687,12]
[313309729,1707130244262,-152.21211562,0.00046728,32]
[313309730,1707130244271,-192.64750663,0.00046739,22]
[313309731,1707130244280,-1848.15405668,0.00046745,22]
[313309732,1707130244289,-445.0,0.0004679,2]
[313309733,1707130244298,-6858.44734155,0.00046824,11]
[313309734,1707130244341,-3669.66,0.00046824,11]
[313309735,1707130244460,-152.17140298,0.00038624,2]
[313309736,1707130244469,-2503.48683544,0.00046824,11]
[313309765,1707130448349,4832.48,0.0002,2]
[313309768,1707130843350,-338.3860416,0.00022985,2]
[313309769,1707130843371,-534.0583607,0.00022986,2]
[313309770,1707130843390,-691.58394825,0.00022989,2]
[313309771,1707130843411,-9124.66725539,0.00022998,7]
[313309772,1707130843432,-15177.26612674,0.00022999,2]
[313309773,1707130843452,-6480.65586544,0.00022999,2]
[313309774,1707130843476,-486.86089382,0.00022999,2]
[313309775,1707130843497,-13166.52150806,0.00023,2]
[313309776,1707130874761,3570.06431029,0.00021848,7]
[313309777,1707130874785,5119.27653109,0.00021848,7]
[313309779,1707130987281,-534.0583607,0.00022767,2]
[313309780,1707130987303,-158.69023535,0.00022768,2]
[313309781,1707130987326,-1307.25140395,0.00022998,2]
[313309782,1707130988000,-2000.0,0.00022998,2]
[313309783,1707130988339,-2000.0,0.00022998,2]
[313309784,1707130988690,-2000.0,0.00022998,2]
[313309785,1707130989054,-2000.0,0.00022998,2]
[313309786,1707130989468,-2000.0,0.00022998,2]
[313309787,1707130989843,-2000.0,0.00022998,2]
[313309788,1707130990222,-2000.0,0.00022998,2]
[313309789,1707130990582,-2000.0,0.00022998,2]
[313309790,1707130990933,-2000.0,0.00022998,2]
[313309791,1707130991263,-2000.0,0.00022998,2]
[313309792,1707130991622,-2000.0,0.00022998,2]
[313309793,1707130991961,-2000.0,0.00022998,2]
[313309794,1707130992321,-2000.0,0.00022998,2]
[313309795,1707130992746,-2000.0,0.00022998,2]
[313309796,1707130993220,-2000.0,0.00022998,2]
[313309797,1707130993629,-2000.0,0.00022998,2]
[313309798,1707130994041,-2000.0,0.00022998,2]
[313309799,1707130994420,-2000.0,0.00022998,2]
[313309800,1707130994782,-2000.0,0.00022998,2]
[313309801,1707130995245,-2000.0,0.00022998,2]
[313309802,1707130995625,-2000.0,0.00022998,2]
[313309803,1707130996002,-2000.0,0.00022998,2]
[313309804,1707130996347,-2000.0,0.00022998,2]
[313309806,1707131003716,-1997.28,0.00022998,2]
[313309809,1707131054116,-2000.0,0.00022995,2]
[313309810,1707131054915,-2000.0,0.00022995,2]
[313309811,1707131055565,-2000.0,0.00022995,2]
[313309812,1707131056136,-2000.0,0.00022995,2]
[313309813,1707131056691,-1932.93995334,0.00022995,2]
[313309814,1707131056716,-67.06004666,0.00022996,2]
[313309815,1707131057338,-2000.0,0.00022996,2]
[313309816,1707131057958,-2000.0,0.00022996,2]
[313309818,1707131058512,-2000.0,0.00022996,2]
[313309819,1707131059179,-2000.0,0.00022996,2]
[313309820,1707131059947,-2000.0,0.00022996,2]
[313309821,1707131061081,-2000.0,0.00022996,2]
[313309822,1707131061342,-2000.0,0.00022996,2]
[313309823,1707131062164,-2000.0,0.00022996,2]
[313309824,1707131062849,-2000.0,0.00022996,2]
[313309825,1707131063499,-2000.0,0.00022996,2]
[313309826,1707131072032,-590.45,0.00022898,2]
[313309829,1707131198781,9124.66725539,0.00021846,7]
[313309830,1707131270942,-321.77821596,0.00022663,2]
[313309831,1707131270964,-154.27786179,0.00022664,2]
[313309832,1707131270984,-155.0,0.00022761,2]
[313309833,1707131271004,-338.3860416,0.00022761,2]
[313309834,1707131271024,-15177.26612674,0.00022762,2]
[313309835,1707131271045,-155.0,0.00022762,2]
[313309836,1707131271069,-2025.55751764,0.00022763,2]
[313309837,1707131271090,-2912.44051013,0.00022764,2]
[313309838,1707131271111,-150.0,0.00022764,2]
[313309839,1707131271132,-415.1458293,0.00022766,2]
[313309840,1707131271152,-1504.09146174,0.00022766,2]
[313309841,1707131271177,-154.27786176,0.00022882,2]
[313309842,1707131271200,-16109.2809,0.00022898,2]
[313309843,1707131271221,-21862.71502392,0.00022996,2]
[313309844,1707131271241,-379.10740584,0.00022996,2]
[313309845,1707131271261,-388.22292933,0.00022996,2]
[313309846,1707131271281,-1048.93163438,0.00022996,2]
[313309847,1707131271302,-199.87069569,0.00022996,2]
[313309848,1707131271322,-273.34266273,0.00022996,2]
[313309849,1707131271343,-155.40414092,0.00022996,2]
[313309850,1707131271365,-1260.32466862,0.00022996,2]
[313309851,1707131271385,-769.14992565,0.00022996,2]
[313309852,1707131271404,-691.58394825,0.00022996,2]
[313309853,1707131271424,-219.32215963,0.00022997,2]
[313309854,1707131271443,-155.37652489,0.00022997,2]
[313309855,1707131271464,-2598.02301495,0.00022997,2]
[313309856,1707131271485,-584.02539981,0.00022997,2]
[313309857,1707131271505,-15035.43899967,0.00022997,2]
[313309858,1707131271525,-245.51995102,0.00022997,2]
[313309859,1707131271546,-2105.27084303,0.00022997,2]
[313309860,1707131271567,-362733.12088163,0.00022998,2]
[313309861,1707131271588,-1107722.74686338,0.00023,2]
[313309873,1707131431430,-741.73366123,0.00022662,2]
[313309874,1707131431443,-519.09627317,0.00022662,2]
[313309875,1707131431453,-128.73930905,0.00022662,2]
[313309878,1707131431486,-517.9614323,0.00022662,2]
[313309892,1707131431919,-0.02530342,0.00022662,2]
[313309893,1707131431932,-578.19461132,0.00022662,2]
[313309894,1707131431942,-218.78708753,0.00022662,2]
[313309895,1707131431951,-769.45446522,0.00022662,2]
[313309896,1707131431960,-338.3860416,0.00022663,2]
[313309897,1707131431970,-321.77821596,0.00022663,2]
[313309898,1707131431979,-155.0,0.00022664,2]
[313309899,1707131431988,-2025.55751764,0.00022664,2]
[313309900,1707131431997,-786.89107213,0.00022664,2]
[313309901,1707131432017,-1072.31223007,0.00022664,2]
[313309902,1707131432026,-3341.79505415,0.00022665,2]
[313309903,1707131432036,-155.0,0.00022666,2]
[313309904,1707131432045,-6633.5564935,0.00022668,2]
[313309905,1707131432055,-1504.09146174,0.00022669,2]
[313309906,1707131432064,-415.1458293,0.00022669,2]
[313309907,1707131432073,-14382.0,0.0002277,2]
[313309908,1707131432083,-4848.31524309,0.000228,2]
[313309909,1707131432092,-300.0,0.00022898,2]
[313309910,1707131432101,-150.0,0.00022898,2]
[313309911,1707131432110,-155.37652489,0.00022898,2]
[313309912,1707131432120,-245.51995102,0.00022898,2]
[313309913,1707131432129,-379.10740584,0.00022898,2]
[313309914,1707131432138,-273.34266273,0.00022898,2]
[313309915,1707131432148,-388.22292933,0.00022898,2]
[313309916,1707131432157,-199.87069569,0.00022898,2]
[313309917,1707131432166,-842.58394825,0.00022898,2]
[313309918,1707131432175,-584.02539981,0.00022898,2]
[313309919,1707131432184,-408.41431133,0.00022898,2]
[313309920,1707131432193,-355.706738,0.00022899,2]
[313309921,1707131432203,-199.69563475,0.00022899,2]
[313309922,1707131432212,-157.52910688,0.00022899,2]
[313309923,1707131432222,-169.55306514,0.00022899,2]
[313309924,1707131432233,-155.43206583,0.00022899,2]
[313309925,1707131432242,-277.15870561,0.00022899,2]
[313309926,1707131432250,-156.77297195,0.00022899,2]
[313309927,1707131432259,-155.0,0.00022899,2]
[313309928,1707131432269,-699.81053348,0.00022899,2]
[313309929,1707131432278,-43269.68268762,0.000229,2]
[313309930,1707131432547,-1800.28208944,0.000229,2]
[313309931,1707131432559,-2551.19249114,0.000229,2]
[313309932,1707131432571,-3169.11946523,0.000229,2]
[313309933,1707131432582,-1731.90627148,0.000229,2]
[313309938,1707131437401,-1049.36025505,0.00022661,2]
[313309939,1707131437410,-3080.25218443,0.000229,2]
[313309940,1707131437422,-297.24781902,0.000229,2]
[313309941,1707131437434,-3956.37270768,0.000229,2]
[313309942,1707131437445,-353.24821662,0.000229,2]
[313309943,1707131437498,-1842.49797519,0.000229,2]
[313309944,1707131437658,-852.04,0.000229,2]
[313309953,1707131440028,-8055.76908848,0.000229,2]
[313309954,1707131440041,-5319.89305552,0.000229,2]
[313309955,1707131440085,-1613.42219468,0.000229,2]
[313309956,1707131440141,-400.11407784,0.000229,2]
[313309957,1707131440777,-555.21,0.000229,2]
[313309958,1707131440926,-29786.8285291,0.000229,2]
[313309976,1707131442392,-71303.55816922,0.000229,2]
[313309980,1707131442404,-9300.82849591,0.000229,2]
[313309999,1707131442615,-986.06827491,0.000229,2]
[313310000,1707131442627,-323.78429081,0.000229,2]
[313310001,1707131442638,-10238.25215461,0.000229,2]
[313310002,1707131442650,-5699.20571234,0.000229,2]
[313310003,1707131442662,-515.7642524,0.000229,2]
[313310004,1707131442674,-10975.39934671,0.000229,2]
[313310005,1707131442693,-810.5932,0.000229,2]
[313310006,1707131442782,-331.95740288,0.000229,2]
[313310010,1707131445366,-294.84510258,0.000229,2]
[313310011,1707131445419,-674.79429573,0.00022899,2]
[313310012,1707131445431,-2662.90974124,0.00022899,2]
[313310013,1707131445440,-9374.71222814,0.000229,2]
[313310014,1707131445452,-11379.99999995,0.000229,2]
[313310015,1707131445494,-48121.33251607,0.000229,2]
[313310016,1707131445503,-9680.16697541,0.000229,2]
[313310017,1707131445512,-192.02,0.00022947,2]
[313310018,1707131445521,-800.0,0.00022959,2]
[313310019,1707131445530,-215.43834682,0.00022975,2]
[313310020,1707131445540,-2908.17900062,0.00022998,2]
[313310021,1707131445549,-479.05340948,0.00022998,2]
[313310022,1707131445559,-373.7323248,0.00022998,2]
[313310023,1707131445568,-598.64663937,0.00022998,2]
[313310024,1707131445578,-947.82918644,0.00022998,2]
[313310025,1707131445587,-189.6215104,0.00022998,2]
[313310026,1707131445599,-1883.74141481,0.00022998,2]
[313310027,1707131445619,-1685.65210385,0.00022998,2]
[313310028,1707131445628,-204.53410873,0.00022998,2]
[313310029,1707131445637,-544.95056312,0.00022998,2]
[313310030,1707131445649,-594.83250421,0.00022998,2]
[313310031,1707131445658,-539.97217772,0.00022998,2]
[313310032,1707131445667,-163.91456496,0.00022998,2]
[313310033,1707131445677,-198.28575054,0.00022998,2]
[313310034,1707131445686,-155.0,0.00022998,2]
[313310035,1707131445695,-500.0,0.00022998,2]
[313310036,1707131445706,-18.97720762,0.00022998,2]
[313310037,1707131445727,-489.71676438,0.00022899,2]
[313310038,1707131445736,-202.11686656,0.00022998,2]
[313310039,1707131445748,-548.46137157,0.00022998,2]
[313310040,1707131445757,-243.19389264,0.00022998,2]
[313310041,1707131445770,-102.57853953,0.00022998,2]
[313310043,1707131445780,-215.68669268,0.00022998,2]
[313310044,1707131445789,-113.61976779,0.00022998,2]
[313310045,1707131445805,-959.49909782,0.00022998,2]
[313310046,1707131445814,-156.13818211,0.00022998,2]
[313310047,1707131445824,-6.96141071,0.00022998,2]
[313310049,1707131445836,-148.26086391,0.00022998,2]
[313310051,1707131445845,-285.21668893,0.00022998,2]
[313310053,1707131445854,-1060.95719032,0.00022998,2]
[313310055,1707131445866,-344.3407224,0.00022998,2]
[313310057,1707131445877,-261.133,0.00022998,2]
[313310060,1707131445893,-680.22227264,0.00022998,2]
[313310062,1707131445904,-2356.27344761,0.00022998,2]
[313310065,1707131445921,-1178.08565659,0.00022998,2]
[313310067,1707131445930,-314.9861483,0.00022998,2]
[313310069,1707131445941,-155.82528927,0.00022998,2]
[313310071,1707131445950,-340.45017893,0.00022998,2]
[313310073,1707131445960,-157.71471968,0.00022998,2]
[313310075,1707131445969,-255.80384809,0.00022998,2]
[313310077,1707131445979,-321.28838879,0.00022998,2]
[313310080,1707131445989,-5038.93139283,0.00022998,2]
[313310082,1707131445998,-497.3082028,0.00022998,2]
[313310084,1707131446007,-247.34763938,0.00022998,2]
[313310086,1707131446017,-18654.44114775,0.00022998,2]
[313310088,1707131446027,-270.6074957,0.00022998,2]
[313310090,1707131446037,-4646.38858611,0.00022998,2]
[313310092,1707131446047,-176.46382615,0.00022998,2]
[313310094,1707131446056,-292.42529483,0.00022998,2]
[313310096,1707131446065,-3151.54630641,0.00022998,2]
[313310098,1707131446075,-200.12650566,0.00022998,2]
[313310100,1707131446084,-632.7573015,0.00022998,2]
[313310102,1707131446094,-475.5963884,0.00022998,2]
[313310104,1707131446103,-206.20690972,0.00022998,2]
[313310106,1707131446112,-264.01241493,0.00022998,2]
[313310108,1707131446122,-349.06708826,0.00022998,2]
[313310110,1707131446131,-273.66331746,0.00022998,2]
[313310112,1707131446140,-155.62074619,0.00022998,2]
[313310114,1707131446149,-490.50216951,0.00022998,2]
[313310116,1707131446159,-310.84360459,0.00022998,2]
[313310118,1707131446168,-249.66615555,0.00022998,2]